[Event "1st Gujarat GM Open 2018"]
[Site "Ahmedabad"]
[Date "2018.10.08"]
[Round "5"]
[White "Predke, Alexandr"]
[Black "Rahul Srivatshav P"]
[Result "1/2-1/2"]
[ECO "B15"]
[WhiteElo "2615"]
[BlackElo "2395"]
[Annotator "RC"]
[PlyCount "70"]
[EventDate "2018.10.05"]
[EventType "swiss"]
[EventCountry "IND"]
[SourceTitle "playchess.com"]
[Source "ChessBase"]
[SourceQuality "1"]
[TimeControl "5400+30"]

1. e4 {[%emt 0:01:25]} c6 {[%emt 0:00:00]} 2. d4 {[%emt 0:02:35]} d5 {[%emt 0:00:38]} 3. Nc3 {[%emt 0:01:03]} dxe4 {[%emt 0:00:18]} 4. Nxe4 {[%emt 0:00:05]} Nf6 {[%emt 0:00:15]} 5. Nxf6+ {[%emt 0:00:28]} exf6 {[%emt 0:00:07]} 6. c3 {[%emt 0:00:21]} Bd6 {[%emt 0:00:08]} 7. Bd3 {[%emt 0:00:04]} O-O {[%emt 0:00:08]} 8. Qc2 {[%emt 0:00:13]} Re8+ {[%emt 0:00:06]} 9. Ne2 {[%emt 0:00:04]} f5 {[%emt 0:00:16]} 10. Bxf5 {[%emt 0:06:48]} Bxf5 {[%emt 0:01:17]} 11. Qxf5 {[%emt 0:00:18]} Nd7 {[%emt 0:00:15]} 12. Be3 {[%emt 0:04:33]} Nb6 {[%emt 0:00:21]} 13. O-O {[%emt 0:04:24]} Nc4 {[%emt 0:00:36]} 14. b3 {[%emt 0:20:21]} g6 {[%emt 0:00:38]} 15. Qd3 {[%emt 0:03:33]} Nxe3 {[%emt 0:03:51]} 16. fxe3 {[%emt 0:00:08]} f5 {[%emt 0:06:04]} 17. Nf4 {[%emt 0:02:36]} Re4 {[%emt 0:02:11]} 18. Qc4+ {[%emt 0:14:09]} Kh8 {[%emt 0:01:53]} 19. Qf7 {[%emt 0:00:06] Kg8 [%clk 1:21:21] Qc4+ [%clk 0:35:52] Kh8 [%clk 1:19:58] Qf7 [%clk 0:36:16] Kg8 [%clk 1:21:21] Qc4+ [%clk 0:35:52] Kh8 [%clk 1:19:58] Qf7 [%clk 0:36:16]} Rxe3 {[%emt 0:21:00]} 20. Ne6 {[%emt 0:05:52]} Qe7 {[%emt 0:01:38]} 21. Nf4 Qd8 {[%emt 0:00:00]} 22. Ne6 {[%emt 0:01:00]} Qe7 {[%emt 0:01:00]} 23. Qxe7 {[%emt 0:00:54]} Bxe7 {[%emt 0:00:09]} 24. Rae1 {[%emt 0:00:10]} Rxe1 {[%emt 0:00:28]} 25. Rxe1 {[%emt 0:00:02]} Rc8 {[%emt 0:06:20]} 26. g3 {[%emt 0:10:24]} Kg8 {[%emt 0:00:58]} 27. h4 {[%emt 0:00:05]} Kf7 {[%emt 0:00:57]} 28. Ng5+ {[%emt 0:00:22]} Bxg5 {[%emt 0:00:26]} 29. hxg5 {[%emt 0:00:02]} h6 {[%emt 0:02:49]} 30. gxh6 {[%emt 0:00:24]} Rh8 {[%emt 0:00:06]} 31. d5 {[%emt 0:06:58]} cxd5 {[%emt 0:00:08]} 32. Re5 {[%emt 0:00:03]} Rxh6 {[%emt 0:00:20]} 33. Rxd5 {[%emt 0:00:02]} Ke6 {[%emt 0:00:11]} 34. Rd8 {[%emt 0:00:41]} Rh7 {[%emt 0:00:11]} 35. Rg8 {[%emt 0:01:43]} Ke5 1/2-1/2

[Event "1st Gujarat GM Open 2018"]
[Site "Ahmedabad"]
[Date "2018.10.08"]
[Round "5"]
[White "Tukhaev, Adam"]
[Black "Ramnathan, Balasubramaniam"]
[Result "1-0"]
[ECO "C42"]
[WhiteElo "2556"]
[BlackElo "2142"]
[Annotator "ChessBase"]
[PlyCount "107"]
[EventDate "2018.10.05"]
[EventType "swiss"]
[EventCountry "IND"]
[SourceTitle "playchess.com"]
[Source "ChessBase"]
[SourceQuality "1"]
[TimeControl "5400+30"]

1. e4 {[%emt 0:00:00]} e5 {[%emt 0:00:00]} 2. Nf3 {[%emt 0:00:00]} Nf6 {[%emt 0:00:00]} 3. Nxe5 {[%emt 0:00:11]} d6 {[%emt 0:00:08]} 4. Nf3 {[%emt 0:00:04]} Nxe4 {[%emt 0:00:10]} 5. Nc3 {[%emt 0:00:18]} Nxc3 {[%emt 0:00:07]} 6. dxc3 {[%emt 0:00:06]} Be7 {[%emt 0:00:47]} 7. Be3 {[%emt 0:00:06]} Nc6 {[%emt 0:00:56]} 8. Qd2 {[%emt 0:00:07]} O-O {[%emt 0:01:43]} 9. O-O-O {[%emt 0:00:11]} Bf5 {[%emt 0:01:06]} 10. h4 {[%emt 0:03:11]} Bf6 {[%emt 0:09:04]} 11. Ng5 {[%emt 0:08:54]} Ne5 {[%emt 0:08:04]} 12. f3 {[%emt 0:02:40]} Qd7 {[%emt 0:02:30]} 13. b3 {[%emt 0:13:55]} Rae8 {[%emt 0:04:50]} 14. Be2 {[%emt 0:06:14]} Qe7 {[%emt 0:06:51]} 15. Rde1 {[%emt 0:04:34]} d5 {[%emt 0:09:37]} 16. Kb2 {[%emt 0:02:49]} Nc6 {[%emt 0:06:53]} 17. Bd3 {[%emt 0:11:01]} Ne5 {[%emt 0:00:00]} 18. Be2 {[%emt 0:00:00]} Nc6 {[%emt 0:01:00]} 19. Bd3 {[%emt 0:01:00]} Qd7 {[%emt 0:07:01]} 20. Bxf5 {[%emt 0:01:37]} Qxf5 {[%emt 0:00:06]} 21. g4 {[%emt 0:00:12]} Qd7 {[%emt 0:00:17]} 22. Ne4 {[%emt 0:05:19]} Be7 {[%emt 0:03:22]} 23. Nc5 {[%emt 0:14:27]} Bxc5 {[%emt 0:05:43]} 24. Bxc5 {[%emt 0:00:05]} Rxe1 {[%emt 0:00:06]} 25. Rxe1 {[%emt 0:00:06]} Rd8 {[%emt 0:00:06]} 26. h5 {[%emt 0:01:18]} b6 {[%emt 0:00:23]} 27. Bg1 {[%emt 0:02:07]} f6 {[%emt 0:03:45]} 28. Bh2 {[%emt 0:03:09]} h6 {[%emt 0:04:12]} 29. Qd3 {[%emt 0:06:21]} a5 {[%emt 0:02:50]} 30. a4 {[%emt 0:00:39]} Ne7 {[%emt 0:04:52]} 31. Qa6 {[%emt 0:01:19]} Kf8 {[%emt 0:02:01]} 32. Qb7 {[%emt 0:03:25]} Rc8 {[%emt 0:00:14]} 33. Rd1 {[%emt 0:01:50]} Qe6 {[%emt 0:02:25]} 34. Bg3 {[%emt 0:00:13]} Kf7 {[%emt 0:00:58]} 35. Re1 {[%emt 0:00:56]} Qd7 {[%emt 0:00:06]} 36. Bf2 {[%emt 0:00:20]} Rd8 {[%emt 0:00:52]} 37. Rd1 {[%emt 0:02:55]} Qc6 {[%emt 0:01:19]} 38. Qa6 {[%emt 0:00:05]} Qd6 {[%emt 0:02:37]} 39. Qd3 {[%emt 0:04:05]} Nc6 {[%emt 0:02:51]} 40. Be3 {[%emt 0:00:23]} Qe6 {[%emt 0:01:11]} 41. Bf4 {[%emt 0:00:34]} Ne5 {[%emt 0:00:51]} 42. Qf1 {[%emt 0:01:14]} Qd6 {[%emt 0:00:58]} 43. Kb1 {[%emt 0:00:39]} Re8 {[%emt 0:01:25]} 44. Qf2 {[%emt 0:00:52]} c5 {[%emt 0:00:39]} 45. Bc1 {[%emt 0:00:43]} Rd8 {[%emt 0:01:38]} 46. Qg2 {[%emt 0:00:20]} Qd7 {[%emt 0:01:31]} 47. Rg1 {[%emt 0:00:04]} Kf8 {[%emt 0:01:51]} 48. f4 {[%emt 0:00:04]} Nf7 {[%emt 0:01:37]} 49. g5 {[%emt 0:00:03]} f5 {[%emt 0:01:04]} 50. gxh6 {[%emt 0:00:04]} Nxh6 {[%emt 0:00:10]} 51. Qg6 {[%emt 0:00:02]} Qc7 {[%emt 0:01:04]} 52. Re1 {[%emt 0:00:04]} c4 {[%emt 0:00:32]} 53. Ba3+ {[%emt 0:00:18]} Kg8 {[%emt 0:00:09]} 54. Re7 1-0

[Event "1st Gujarat GM Open 2018"]
[Site "Ahmedabad"]
[Date "2018.10.08"]
[Round "5"]
[White "Lalith Babu M R"]
[Black "Babujian, Levon"]
[Result "0-1"]
[ECO "A25"]
[WhiteElo "2518"]
[BlackElo "2456"]
[Annotator "ChessBase"]
[PlyCount "92"]
[EventDate "2018.10.05"]
[EventType "swiss"]
[EventCountry "IND"]
[SourceTitle "playchess.com"]
[Source "ChessBase"]
[SourceQuality "1"]
[TimeControl "5400+30"]

1. c4 {[%emt 0:00:00]} e5 {[%emt 0:00:00]} 2. g3 {[%emt 0:00:00]} Nc6 {[%emt 0:00:39]} 3. Bg2 {[%emt 0:00:00]} g6 {[%emt 0:03:37]} 4. Nc3 {[%emt 0:00:35]} Bg7 {[%emt 0:00:05]} 5. e4 {[%emt 0:00:41]} d6 {[%emt 0:01:56]} 6. Nge2 {[%emt 0:01:37]} h5 {[%emt 0:01:53]} 7. h4 {[%emt 0:01:29]} Nh6 {[%emt 0:04:27]} 8. d3 {[%emt 0:00:54]} O-O {[%emt 0:00:42]} 9. O-O {[%emt 0:03:20]} Nd4 {[%emt 0:01:40]} 10. Nxd4 {[%emt 0:04:34]} exd4 {[%emt 0:01:00]} 11. Ne2 {[%emt 0:00:04]} Ng4 {[%emt 0:00:29]} 12. Bg5 {[%emt 0:00:55]} Qe8 {[%emt 0:01:56]} 13. Re1 {[%emt 0:03:11]} a5 {[%emt 0:00:32]} 14. Rc1 {[%emt 0:12:11]} c6 {[%emt 0:05:15]} 15. Rc2 {[%emt 0:02:54]} Qe5 {[%emt 0:04:24]} 16. f3 {[%emt 0:05:42]} Nf6 {[%emt 0:05:43]} 17. Bf4 {[%emt 0:03:59]} Qc5 {[%emt 0:00:58]} 18. Nc1 {[%emt 0:00:37]} a4 {[%emt 0:01:45]} 19. Qd2 {[%emt 0:00:04]} Nd7 {[%emt 0:02:05]} 20. b4 {[%emt 0:02:30]} axb3 {[%emt 0:00:04]} 21. axb3 {[%emt 0:01:36]} Ne5 {[%emt 0:00:24]} 22. b4 {[%emt 0:00:26]} Qb6 {[%emt 0:00:11]} 23. c5 {[%emt 0:09:41]} dxc5 {[%emt 0:00:38]} 24. bxc5 {[%emt 0:00:04]} Qa5 {[%emt 0:01:13]} 25. Qxa5 {[%emt 0:03:32]} Rxa5 {[%emt 0:00:16]} 26. Bxe5 {[%emt 0:00:10]} Bxe5 {[%emt 0:00:04]} 27. f4 {[%emt 0:00:04]} Bg7 {[%emt 0:01:08]} 28. Nb3 {[%emt 0:02:24]} Ra3 {[%emt 0:00:47]} 29. Rb1 {[%emt 0:00:05]} Rd8 {[%emt 0:00:51]} 30. Bf1 {[%emt 0:02:15]} Rf8 {[%emt 0:00:09]} 31. Bg2 {[%emt 0:00:00]} Rd8 {[%emt 0:00:51]} 32. Bf1 {[%emt 0:01:00]} Bf8 {[%emt 0:03:33]} 33. e5 {[%emt 0:03:10]} Be6 {[%emt 0:03:22]} 34. Nd2 {[%emt 0:02:48]} Rc3 {[%emt 0:00:51]} 35. Rxc3 {[%emt 0:11:42]} dxc3 {[%emt 0:00:47]} 36. Ne4 {[%emt 0:00:05]} Rd4 {[%emt 0:12:48]} 37. Nxc3 {[%emt 0:06:22]} Bxc5 {[%emt 0:00:25]} 38. Kh1 {[%emt 0:00:47]} b5 {[%emt 0:01:05]} 39. Ne4 {[%emt 0:00:49]} Ba3 {[%emt 0:03:04]} 40. Kg1 {[%emt 0:00:18]} b4 {[%emt 0:01:26]} 41. Nd2 {[%emt 0:01:45]} b3 {[%emt 0:06:23]} 42. Kf2 {[%emt 0:00:19]} b2 {[%emt 0:01:52]} 43. Ke3 {[%emt 0:00:04]} Bc5 {[%emt 0:01:10]} 44. Ke2 {[%emt 0:00:36]} Rb4 {[%emt 0:00:40]} 45. Nc4 {[%emt 0:00:21]} Bd4 {[%emt 0:01:42]} 46. Kd2 {[%emt 0:00:06]} Rb3 {[%emt 0:01:21]} 0-1

[Event "1st Gujarat GM Open 2018"]
[Site "Ahmedabad"]
[Date "2018.10.08"]
[Round "5"]
[White "Rahman, Ziaur"]
[Black "Navalgund, Niranjan"]
[Result "0-1"]
[ECO "E69"]
[WhiteElo "2473"]
[BlackElo "2245"]
[Annotator "RC"]
[PlyCount "111"]
[EventDate "2018.10.05"]
[EventType "swiss"]
[EventCountry "IND"]
[SourceTitle "playchess.com"]
[Source "ChessBase"]
[SourceQuality "1"]
[TimeControl "5400+30"]

1. Nf3 {[%emt 0:01:27]} Nf6 {[%emt 0:00:00]} 2. c4 {[%emt 0:00:34]} g6 {[%emt 0:00:00]} 3. g3 {[%emt 0:01:33]} Bg7 {[%emt 0:00:00]} 4. Bg2 {[%emt 0:00:03]} O-O {[%emt 0:00:00]} 5. O-O {[%emt 0:00:06]} d6 {[%emt 0:00:00]} 6. Nc3 {[%emt 0:01:19]} e5 {[%emt 0:00:01]} 7. d4 {[%emt 0:01:26]} Nbd7 {[%emt 0:00:40]} 8. e4 {[%emt 0:02:19]} c6 {[%emt 0:00:27]} 9. h3 {[%emt 0:00:25]} Qb6 {[%emt 0:00:56]} 10. Re1 {[%emt 0:00:32]} exd4 {[%emt 0:00:06]} 11. Nxd4 {[%emt 0:00:05]} Re8 {[%emt 0:00:20]} 12. Nc2 {[%emt 0:02:06]} Qa5 {[%emt 0:05:18]} 13. Ne3 {[%emt 0:06:42]} Nc5 {[%emt 0:04:45]} 14. Nc2 {[%emt 0:04:43]} Ncd7 {[%emt 0:11:21]} 15. Bd2 {[%emt 0:02:27]} Qc7 {[%emt 0:01:57]} 16. Re2 {[%emt 0:06:51]} a6 {[%emt 0:05:41]} 17. b3 {[%emt 0:04:53]} b5 {[%emt 0:04:20]} 18. cxb5 {[%emt 0:03:43]} axb5 {[%emt 0:00:13]} 19. Rc1 {[%emt 0:01:12]} Bb7 {[%emt 0:08:00]} 20. Be1 {[%emt 0:09:23]} Rf8 {[%emt 0:00:00]} 21. Bd2 {[%emt 0:00:00]} Rfe8 {[%emt 0:01:00]} 22. Be1 {[%emt 0:01:00]} Rad8 {[%emt 0:25:47]} 23. Ne3 {[%emt 0:06:52]} Qb8 {[%emt 0:01:58]} 24. Ng4 {[%emt 0:05:43]} b4 {[%emt 0:07:38]} 25. Na4 {[%emt 0:03:02]} c5 {[%emt 0:00:34]} 26. Nxf6+ {[%emt 0:00:56]} Bxf6 {[%emt 0:00:50]} 27. Rcc2 {[%emt 0:04:38]} Ne5 {[%emt 0:05:01]} 28. Nb6 {[%emt 0:03:34]} Bxe4 {[%emt 0:03:27]} 29. Rxe4 {[%emt 0:01:06]} Qxb6 {[%emt 0:00:02]} 30. Qd5 {[%emt 0:01:51]} Nc6 {[%emt 0:02:53]} 31. Rce2 {[%emt 0:09:46]} Rxe4 {[%emt 0:00:54]} 32. Qxe4 {[%emt 0:02:05]} d5 {[%emt 0:00:49]} 33. Qf4 {[%emt 0:00:08]} Nd4 {[%emt 0:00:27]} 34. Re3 {[%emt 0:00:31]} Kg7 {[%emt 0:03:13]} 35. Bd2 {[%emt 0:01:08]} c4 {[%emt 0:01:04]} 36. Re1 {[%emt 0:02:02]} Ne6 {[%emt 0:02:15]} 37. Qf3 {[%emt 0:01:44]} Nd4 {[%emt 0:02:22]} 38. Qf4 {[%emt 0:00:06]} Ne6 {[%emt 0:00:24]} 39. Qf3 {[%emt 0:00:04]} Nc5 {[%emt 0:00:22]} 40. g4 {[%emt 0:02:25]} c3 {[%emt 0:00:29]} 41. Bc1 {[%emt 0:01:41]} Ne4 {[%emt 0:01:47]} 42. Be3 {[%emt 0:00:26]} Bd4 {[%emt 0:00:43]} 43. Qf4 {[%emt 0:02:10]} Bxe3 {[%emt 0:00:11]} 44. fxe3 {[%emt 0:00:04]} Qf6 {[%emt 0:01:41]} 45. Bxe4 {[%emt 0:00:44]} Qxf4 {[%emt 0:00:12]} 46. exf4 {[%emt 0:00:02]} dxe4 {[%emt 0:00:16]} 47. Kf2 {[%emt 0:00:07]} f5 {[%emt 0:00:22]} 48. Ra1 {[%emt 0:00:25]} Rd2+ {[%emt 0:00:16]} 49. Ke3 {[%emt 0:00:04]} Rd3+ {[%emt 0:00:59]} 50. Ke2 {[%emt 0:00:05]} Rxh3 {[%emt 0:00:14]} 51. gxf5 {[%emt 0:00:05]} gxf5 {[%emt 0:00:06]} 52. a3 {[%emt 0:00:09]} bxa3 {[%emt 0:00:52]} 53. b4 {[%emt 0:01:06]} a2 {[%emt 0:01:08]} 54. b5 {[%emt 0:00:11]} Rh2+ {[%emt 0:00:05]} 55. Ke3 {[%emt 0:00:03]} Rb2 {[%emt 0:00:08]} 56. Kd4 0-1

[Event "1st Gujarat GM Open 2018"]
[Site "Ahmedabad"]
[Date "2018.10.08"]
[Round "5"]
[White "Vignesh N R"]
[Black "Bernadskiy, Vitaliy"]
[Result "1/2-1/2"]
[ECO "B90"]
[WhiteElo "2447"]
[BlackElo "2547"]
[Annotator "RC"]
[PlyCount "68"]
[EventDate "2018.10.05"]
[EventType "swiss"]
[EventCountry "IND"]
[SourceTitle "playchess.com"]
[Source "ChessBase"]
[SourceQuality "1"]
[TimeControl "5400+30"]

1. e4 {[%emt 0:00:00]} c5 {[%emt 0:00:00]} 2. Nf3 {[%emt 0:00:00]} d6 {[%emt 0:00:00]} 3. d4 {[%emt 0:00:31]} cxd4 {[%emt 0:00:00]} 4. Nxd4 {[%emt 0:00:04]} Nf6 {[%emt 0:00:00]} 5. Nc3 {[%emt 0:00:04]} a6 {[%emt 0:00:00]} 6. h3 {[%emt 0:00:08]} e6 {[%emt 0:00:39]} 7. g4 {[%emt 0:00:06]} b5 {[%emt 0:00:38]} 8. Bg2 {[%emt 0:01:49]} Bb7 {[%emt 0:01:23]} 9. O-O {[%emt 0:00:28]} Nfd7 {[%emt 0:05:45]} 10. Re1 {[%emt 0:02:08]} Nc6 {[%emt 0:03:14]} 11. a4 {[%emt 0:10:05]} Nxd4 {[%emt 0:03:45]} 12. Qxd4 {[%emt 0:06:18]} e5 {[%emt 0:00:38]} 13. Qd1 {[%emt 0:03:23]} bxa4 {[%emt 0:00:04]} 14. Rxa4 {[%emt 0:03:03]} Nc5 {[%emt 0:03:40]} 15. Ra1 {[%emt 0:07:04]} Be7 {[%emt 0:00:49]} 16. Nd5 {[%emt 0:01:47]} O-O {[%emt 0:01:11]} 17. Be3 {[%emt 0:07:01]} Ne6 {[%emt 0:13:04]} 18. Nxe7+ {[%emt 0:04:13]} Qxe7 {[%emt 0:00:03]} 19. Qd2 {[%emt 0:00:07]} h5 {[%emt 0:08:13]} 20. Red1 {[%emt 0:05:26]} hxg4 {[%emt 0:02:43]} 21. Qxd6 {[%emt 0:01:42]} Qxd6 {[%emt 0:11:09]} 22. Rxd6 {[%emt 0:00:43]} gxh3 {[%emt 0:00:08]} 23. Bxh3 {[%emt 0:00:02]} Bxe4 {[%emt 0:00:32]} 24. Bxe6 {[%emt 0:06:14]} fxe6 {[%emt 0:00:04]} 25. Rxe6 {[%emt 0:03:57]} Bxc2 {[%emt 0:02:26]} 26. Raxa6 {[%emt 0:00:17]} Rxa6 {[%emt 0:00:25]} 27. Rxa6 {[%emt 0:00:03]} Rb8 {[%emt 0:00:21]} 28. Re6 {[%emt 0:01:10]} Rxb2 {[%emt 0:00:15]} 29. Rxe5 {[%emt 0:00:03]} Rb7 {[%emt 0:00:24]} 30. Kh2 {[%emt 0:00:16]} Rf7 {[%emt 0:00:16]} 31. Kg3 {[%emt 0:00:07]} Kh7 {[%emt 0:00:20]} 32. Rh5+ {[%emt 0:00:09]} Kg6 {[%emt 0:00:51]} 33. Rg5+ {[%emt 0:00:10]} Kh7 {[%emt 0:00:06]} 34. Rh5+ {[%emt 0:00:04]} Kg6 {[%emt 0:00:02]} 1/2-1/2

[Event "1st Gujarat GM Open 2018"]
[Site "Ahmedabad"]
[Date "2018.10.08"]
[Round "5"]
[White "Audi Ameya"]
[Black "Prajesh R"]
[Result "1-0"]
[ECO "C55"]
[WhiteElo "2375"]
[BlackElo "1953"]
[Annotator "NA"]
[PlyCount "167"]
[EventDate "2018.10.05"]
[EventType "swiss"]
[EventCountry "IND"]
[SourceTitle "playchess.com"]
[Source "ChessBase"]
[SourceQuality "1"]
[TimeControl "5400+30"]

1. e4 {[%emt 0:00:00]} e5 {[%emt 0:00:00]} 2. Nf3 {[%emt 0:00:00]} Nc6 {[%emt 0:00:02]} 3. Bc4 {[%emt 0:00:00]} Nf6 {[%emt 0:00:06]} 4. d3 {[%emt 0:00:00]} Be7 {[%emt 0:00:06]} 5. O-O {[%emt 0:00:04]} O-O {[%emt 0:00:05]} 6. Re1 {[%emt 0:00:02]} d6 {[%emt 0:00:08]} 7. a4 {[%emt 0:00:03]} Na5 {[%emt 0:00:29]} 8. Ba2 {[%emt 0:00:02]} c5 {[%emt 0:00:07]} 9. c3 {[%emt 0:00:54]} Nc6 {[%emt 0:00:08]} 10. h3 {[%emt 0:00:35]} h6 {[%emt 0:00:40]} 11. Na3 {[%emt 0:00:45]} Re8 {[%emt 0:03:42]} 12. Nc4 {[%emt 0:12:24]} Be6 {[%emt 0:05:18]} 13. d4 {[%emt 0:03:53]} exd4 {[%emt 0:25:53]} 14. cxd4 {[%emt 0:00:03]} d5 {[%emt 0:02:24]} 15. exd5 {[%emt 0:00:35]} Bxd5 {[%emt 0:00:46]} 16. dxc5 {[%emt 0:14:10]} Bxc5 {[%emt 0:03:21]} 17. Rxe8+ {[%emt 0:01:14]} Qxe8 {[%emt 0:00:45]} 18. Be3 {[%emt 0:00:15]} Bxc4 {[%emt 0:09:06]} 19. Bxc5 {[%emt 0:00:10]} Rd8 {[%emt 0:01:08]} 20. Be3 {[%emt 0:00:30]} Rc8 {[%emt 0:00:30]} 21. Bc5 {[%emt 0:06:01]} Rd8 {[%emt 0:00:30]} 22. Qb1 {[%emt 0:00:07]} Rc8 {[%emt 0:00:30]} 23. Qd1 {[%emt 0:00:53]} Rd8 {[%emt 0:00:30]} 24. Qb1 {[%emt 0:00:07]} Be2 {[%emt 0:04:11]} 25. Qf5 {[%emt 0:00:32]} Bc4 {[%emt 0:00:00]} 26. Qb1 {[%emt 0:00:28]} Be2 {[%emt 0:01:00]} 27. Qf5 {[%emt 0:00:32]} Bd1 {[%emt 0:34:03]} 28. a5 {[%emt 0:05:55]} Qe2 {[%emt 0:01:47]} 29. b4 {[%emt 0:10:02]} Qb2 {[%emt 0:02:54]} 30. Qb1 {[%emt 0:00:17]} Qc3 {[%emt 0:00:02]} 31. Qc1 {[%emt 0:01:43]} Bc2 {[%emt 0:00:18]} 32. Qe1 {[%emt 0:00:26]} Qb2 {[%emt 0:01:42]} 33. Bc4 {[%emt 0:03:54]} Ne4 {[%emt 0:01:20]} 34. Ra2 {[%emt 0:00:32]} Qxa2 {[%emt 0:01:22]} 35. Bxa2 {[%emt 0:00:05]} Rd1 {[%emt 0:00:01]} 36. Bd5 {[%emt 0:26:20]} Nxc5 {[%emt 0:00:08]} 37. Bxc6 {[%emt 0:00:14]} bxc6 {[%emt 0:01:35]} 38. bxc5 {[%emt 0:00:02]} Rxe1+ {[%emt 0:00:46]} 39. Nxe1 {[%emt 0:00:01]} Ba4 {[%emt 0:01:08]} 40. Nf3 {[%emt 0:00:26]} Bb3 {[%emt 0:00:25]} 41. Nd4 {[%emt 0:01:36]} Bd5 {[%emt 0:00:02]} 42. Nf5 {[%emt 0:00:19]} Kf8 {[%emt 0:01:07]} 43. Nd6 {[%emt 0:00:01]} a6 {[%emt 0:00:13]} 44. Nf5 {[%emt 0:00:24]} Be4 {[%emt 0:00:37]} 45. Nd4 {[%emt 0:00:10]} Ke7 {[%emt 0:00:05]} 46. f3 {[%emt 0:00:45]} Bd5 {[%emt 0:00:01]} 47. h4 {[%emt 0:00:21]} Kf6 {[%emt 0:00:53]} 48. Kf2 {[%emt 0:00:02]} h5 {[%emt 0:01:27]} 49. Ke3 {[%emt 0:01:08]} g5 {[%emt 0:00:16]} 50. g3 {[%emt 0:00:11]} Kg6 {[%emt 0:00:28]} 51. Nc2 {[%emt 0:08:51]} Bc4 {[%emt 0:00:06]} 52. Kd4 {[%emt 0:00:02]} Be2 {[%emt 0:00:53]} 53. Nb4 {[%emt 0:00:05]} gxh4 {[%emt 0:00:29]} 54. gxh4 {[%emt 0:00:06]} Kf5 {[%emt 0:00:23]} 55. Nxc6 {[%emt 0:03:08]} Bxf3 {[%emt 0:00:02]} 56. Ne5 {[%emt 0:00:01]} Bh1 {[%emt 0:01:17]} 57. Nxf7 {[%emt 0:00:26]} Kg4 {[%emt 0:00:00]} 58. Nd8 {[%emt 0:00:08]} Kxh4 {[%emt 0:00:08]} 59. c6 {[%emt 0:00:05]} Bxc6 {[%emt 0:00:04]} 60. Nxc6 {[%emt 0:00:02]} Kg3 {[%emt 0:00:07]} 61. Ne7 {[%emt 0:00:52]} Kg4 {[%emt 0:01:06]} 62. Ke3 {[%emt 0:00:27]} Kg3 {[%emt 0:01:42]} 63. Nf5+ {[%emt 0:01:56]} Kg4 {[%emt 0:00:12]} 64. Ng7 {[%emt 0:02:17]} h4 {[%emt 0:00:09]} 65. Kf2 {[%emt 0:00:05]} Kh3 {[%emt 0:01:11]} 66. Kg1 {[%emt 0:00:30]} Kg4 {[%emt 0:00:33]} 67. Ne6 {[%emt 0:00:02]} Kf5 {[%emt 0:00:02]} 68. Nc5 {[%emt 0:00:01]} Ke5 {[%emt 0:00:01]} 69. Nxa6 {[%emt 0:00:06]} Kd6 {[%emt 0:00:02]} 70. Kh2 {[%emt 0:01:18]} Kc6 {[%emt 0:00:01]} 71. Nb4+ {[%emt 0:00:07]} Kb5 {[%emt 0:00:04]} 72. a6 {[%emt 0:00:02]} Kb6 {[%emt 0:00:02]} 73. Kh3 {[%emt 0:00:03]} Ka7 {[%emt 0:00:02]} 74. Kxh4 {[%emt 0:00:04]} Kb6 {[%emt 0:00:03]} 75. Kg5 {[%emt 0:00:05]} Ka7 {[%emt 0:00:02]} 76. Kf5 {[%emt 0:00:03]} Kb6 {[%emt 0:00:03]} 77. Ke6 {[%emt 0:00:02]} Ka7 {[%emt 0:00:03]} 78. Kd7 {[%emt 0:00:08]} Kb6 {[%emt 0:00:06]} 79. Kc8 {[%emt 0:00:05]} Ka7 {[%emt 0:00:02]} 80. Kc7 {[%emt 0:00:04]} Ka8 {[%emt 0:00:03]} 81. Kb6 {[%emt 0:00:03]} Kb8 {[%emt 0:00:03]} 82. Nd5 {[%emt 0:00:13]} Ka8 {[%emt 0:00:11]} 83. Nc7+ {[%emt 0:00:03]} Kb8 {[%emt 0:00:03]} 84. a7+ {[%emt 0:00:05]} 1-0

[Event "1st Gujarat GM Open 2018"]
[Site "Ahmedabad"]
[Date "2018.10.08"]
[Round "5"]
[White "Bharath Subramaniyam H"]
[Black "Kadam Om Manish"]
[Result "1-0"]
[ECO "B22"]
[WhiteElo "2276"]
[BlackElo "2082"]
[Annotator "NA RC"]
[PlyCount "28"]
[EventDate "2018.10.05"]
[EventType "swiss"]
[EventCountry "IND"]
[SourceTitle "playchess.com"]
[Source "ChessBase"]
[SourceQuality "1"]
[TimeControl "5400+30"]

1. e4 {[%emt 0:00:00]} c5 {[%emt 0:00:00]} 2. c3 {[%emt 0:02:03]} d5 {[%emt 0:00:00]} 3. exd5 {[%emt 0:00:08]} Qxd5 {[%emt 0:00:00]} 4. d4 {[%emt 0:00:08]} Nc6 {[%emt 0:00:58]} 5. Nf3 {[%emt 0:00:12]} e6 {[%emt 0:00:17]} 6. Na3 {[%emt 0:00:35]} cxd4 {[%emt 0:00:26]} 7. Nb5 {[%emt 0:01:12]} Qd8 {[%emt 0:03:37]} 8. Bf4 {[%emt 0:02:19]} dxc3 {[%emt 0:35:49]} 9. Nc7+ {[%emt 0:00:51]} Ke7 {[%emt 0:00:01]} 10. Qd3 Qd7 11. Qxd7+ {[%emt 0:00:47] Kd8 [%clk 0:53:44] O-O-O+} Bxd7 {[%emt 0:00:30]} 12. Nxa8 {[%emt 0:00:00]} cxb2 {[%emt 0:00:26] Kxb2 [%clk 1:28:05] Be7 [%clk 0:52:29]} 13. Ne5 {[%emt 0:01:04]} Nxe5 {[%emt 0:02:37]} 14. Bxe5 {[%emt 0:00:10] Bf6 [%clk 0:52:11] f4 [%clk 1:26:52] Bxe5+ [%clk 0:51:38] fxe5 [%clk 1:27:21] Ne7 [%clk 0:51:53] Bc4 [%clk 1:27:00] Kc8 [%clk 0:48:51] Rhf1 [%clk 1:27:07] Rf8 [%clk 0:43:25] Rd2 [%clk 1:24:48] Ng6 [%clk 0:40:08] Rd6 [%clk 1:20:38]} Bc6 $18 {[%emt 0:14:56] Bb3 [%clk 1:18:59] Bxg2 [%clk 0:33:00] Rxf7 [%clk 1:19:17]} ({Viel schwächer ist} 14... bxa1=R+ 15. Bxa1 Kd6 16. Bd4 $19 (16. Bc4 $19)) ({Nicht} 14... bxa1=N 15. Bd3 $19) 1-0

[Event "1st Gujarat GM Open 2018"]
[Site "Ahmedabad"]
[Date "2018.10.08"]
[Round "5"]
[White "Srija, Seshadri"]
[Black "Ashutosh, Kumar"]
[Result "*"]
[ECO "B76"]
[WhiteElo "2246"]
[BlackElo "2044"]
[Annotator "NA"]
[PlyCount "43"]
[EventDate "2018.10.05"]
[EventType "swiss"]
[EventCountry "IND"]
[SourceTitle "playchess.com"]
[Source "ChessBase"]
[SourceQuality "1"]
[TimeControl "5400+30"]

1. e4 {[%emt 0:00:00]} c5 {[%emt 0:00:00]} 2. Nf3 {[%emt 0:00:00]} d6 {[%emt 0:00:02]} 3. d4 {[%emt 0:00:00]} cxd4 {[%emt 0:00:04]} 4. Nxd4 {[%emt 0:00:09]} Nf6 {[%emt 0:00:09]} 5. Nc3 {[%emt 0:00:07]} g6 {[%emt 0:00:06]} 6. Be3 {[%emt 0:00:11]} Bg7 {[%emt 0:00:12]} 7. f3 {[%emt 0:00:12]} O-O {[%emt 0:00:04]} 8. Qd2 {[%emt 0:00:04]} Nc6 {[%emt 0:00:12]} 9. g4 {[%emt 0:00:19]} Be6 {[%emt 0:00:16]} 10. Nxe6 {[%emt 0:00:20]} fxe6 {[%emt 0:00:05]} 11. O-O-O {[%emt 0:00:11]} Ne5 {[%emt 0:07:40]} 12. Be2 {[%emt 0:00:28]} Qa5 {[%emt 0:03:23]} 13. Kb1 {[%emt 0:01:09]} Rac8 {[%emt 0:01:39]} 14. Nb5 {[%emt 0:13:45]} Qxd2 {[%emt 0:04:36]} 15. Rxd2 {[%emt 0:00:08]} a6 {[%emt 0:02:53]} 16. Nd4 {[%emt 0:00:51]} Kf7 {[%emt 0:01:55]} 17. b3 {[%emt 0:12:43]} Nc6 {[%emt 0:04:58]} 18. h4 {[%emt 0:05:12]} Nxd4 {[%emt 0:06:09]} 19. Bxd4 {[%emt 0:00:46]} Nd7 {[%emt 0:03:04]} 20. Be3 {[%emt 0:03:12]} Rc3 {[%emt 0:05:52]} 21. Bf2 {[%emt 0:01:00]} Be5 {[%emt 0:02:24]} 22. Be3 {[%emt 0:00:00]} *